Cogmind - Beta 13 @@@ ROGUE MODE // 2024.04.02 @ 20:17:36 Player: Ciaphas Result: Self-destructed Performance ------------- Evolutions (1) 500 Regions Visited (3) 600 Robots Destroyed (16) 80 Value Destroyed (344) 344 Prototype IDs (2) 40 Alien Tech Used (0) 0 Bonus (0) 0 TOTAL SCORE: 1564 Bonus ------- None Cogmind --------- Core Integrity 400/400 Matter 290/300 Energy 88/100 System Corruption 0% Temperature Cool (0) Movement Treading (160) Location -9/Materials Parts ------- > --- POWER (1) -------- Light Ion Engine > --- PROPULSION (3) --- Light Treads Light Treads Wheel > --- UTILITY (3) ------ Large Storage Unit Structural Scanner > --- WEAPON (2) ------- Medium Laser Assault Rifle > --- INVENTORY (15) --- Wheel ECM Suite Grenade Launcher Datajack Mining Laser Peak State ------------ > --- POWER ------------ Light Ion Engine > --- PROPULSION ------- Light Treads Light Treads > --- UTILITY ---------- Small Storage Unit Improved Terrain Scanner > --- WEAPON ----------- Medium Laser Small Laser > --- INVENTORY -------- Light Ion Engine Wheel [Rating: 9] Favorites ----------- Power Light Ion Engine Engine Light Ion Engine Propulsion Light Treads Treads Light Treads Leg Aluminum Leg Wheel Wheel Utility Large Storage Unit Device Structural Scanner Storage Large Storage Unit Weapon Medium Laser Energy Gun Medium Laser Ballistic Gun Assault Rifle Launcher Grenade Launcher Special Weapon Mining Laser Build | -11 -10 -10 -9 ------- Run | Yrd Mat Min Mat Slots Evolved 2 | . . . 2 Power . | . . . . Propulsion 1 | . . . 1 Utility 1 | . . . 1 Weapon . | . . . . Parts Attached 20 | 3 12 4 1 Power 2 | . 2 . . Engine 2 | . 2 . . Core . | . . . . Reactor . | . . . . Propulsion 7 | 2 3 1 1 Treads 4 | 2 1 1 . Leg . | . . . . Wheel 3 | . 2 . 1 Hover . | . . . . Flight . | . . . . Utility 3 | 1 2 . . Device 2 | 1 1 . . Storage 1 | . 1 . . Processor . | . . . . Hackware . | . . . . Protection . | . . . . Artifact . | . . . . Weapon 8 | . 5 3 . Energy Gun 4 | . 3 1 . Energy Cannon . | . . . . Ballistic Gun 1 | . 1 . . Ballistic Cannon . | . . . . Launcher 2 | . 1 1 . Special Weapon 1 | . . 1 . Impact Weapon . | . . . . Slashing Weapon . | . . . . Piercing Weapon . | . . . . Special Melee Weapon . | . . . . Unidentified Prototypes . | . . . . Parts Lost 1 | . 1 . . Power . | . . . . Propulsion . | . . . . Utility 1 | . 1 . . Weapon . | . . . . Highest Loss Streak 1 | . 1 . . To Critical Strikes . | . . . . Average Slot Usage (%) 98 | . 97 100 . Engine 14 | . 14 14 . Treads 17 | . 15 21 . Wheel 10 | . 12 7 . Device 12 | . 11 14 . Storage 14 | . 14 14 . Energy Gun 15 | . 19 11 . Ballistic Gun 10 | . 8 14 . Naked Turns . | . . . . Heaviest Build 29 | 12 28 29 28 Greatest Support 40 | 40 40 40 40 Greatest Overweight (x) 2 | . 2 2 . Average Overweight (x) 1 | . 1 . . Largest Inventory Capacity 15 | 8 15 15 15 Average Capacity 14 | 8 14 15 15 Most Carried 6 | 6 5 6 5 Average Carried 4 | 2 3 5 5 Final Capacity 15 | 8 15 15 15 Final Carried 6 | 2 5 6 5 Class Distribution -------------------- 100% | Mutant Dominant Class ---------------- Mutant | -10/Materials Mutant | -10/Mines Mutant | -9/Materials Resources | -11 -10 -10 -9 ----------- Run | Yrd Mat Min Mat Matter Collected 464 | 230 135 99 . Remotely . | . . . . Salvage Created 480 | 89 313 78 . Parts 23 | 5 16 2 . Haulers Intercepted . | . . . . Recyclers Shooed 1 | 1 . . . Parts Field Recycled . | . . . . Retrieved Matter . | . . . . Parts Self-Destructed . | . . . . Prevented . | . . . . Kills | -11 -10 -10 -9 ------- Run | Yrd Mat Min Mat Combat Hostiles Destroyed 12 | . 10 2 . Melee 1 | . 1 . . Guns 5 | . 4 1 . AOE 4 | . 3 1 . Classes Destroyed 6 | 2 4 . . Worker 1 | . 1 . . Tunneler 1 | 1 . . . Recycler 1 | 1 . . . Watcher 1 | . 1 . . Swarmer 5 | . 5 . . Grunt 7 | . 5 2 . Best Kill Streak 4 | 1 4 1 . Combat Bots Only 3 | . 3 1 . Max Kills in Single Turn 2 | 1 2 1 . Gunslinging . | . . . . Exploded 2 | . 2 1 . Melee 1 | . 1 . . Uniques/NPCs Destroyed . | . . . . Combat | -11 -10 -10 -9 -------- Run | Yrd Mat Min Mat Hostile Shots Fired 61 | . 53 8 . Missed 12 | . 12 . . Damage Taken 586 | . 480 106 . Core 133 | . 76 57 . Absorbed by Shields . | . . . . Core Remaining (%) 73 | 100 . 46 . Volleys Fired 45 | 4 33 8 . Largest 2 | 2 2 2 . Hottest 100 | 90 100 100 . Shots Fired 86 | 8 64 14 . Gun 80 | 8 62 10 . Cannon . | . . . . Launcher 4 | . 2 2 . Special 2 | . . 2 . Kinetic 13 | . 7 6 . Thermal 69 | 8 55 6 . Explosive 4 | . 2 2 . Electromagnetic . | . . . . Robot Hit Streak 10 | 3 10 2 . Robot Miss Streak 6 | 1 6 1 . Penetration Max . | . . . . Secondary Targets 1 | . 1 . . Max Gunslinging Chain 1 | . 1 . . Shots Hit Robots 51 | 5 40 6 . Core Hits 24 | 3 16 5 . Critical Kills . | . . . . Critical Parts Destroyed . | . . . . Critical Strikes 5 | . 5 . . Burn 5 | . 5 . . Melee Attacks . | . . . . Impact . | . . . . Slashing . | . . . . Piercing . | . . . . Sneak Attacks . | . . . . Combat Hostiles . | . . . . Follow-up Attacks . | . . . . Damage Inflicted 880 | 59 664 157 . Guns 614 | 59 486 69 . Cannons . | . . . . Explosions 249 | . 161 88 . Melee . | . . . . Ramming 17 | . 17 . . Kinetic 83 | . 14 69 . Thermal 531 | 59 472 . . Explosive 249 | . 161 88 . Electromagnetic . | . . . . Impact . | . . . . Slashing . | . . . . Piercing . | . . . . Highest Corruption . | . . . . Average Corruption . | . . . . Corruption Purged . | . . . . Corruption Blocked . | . . . . Overload Shots . | . . . . Overflow Damage 18 | . 18 . . Projectiles . | . . . . Explosions 18 | . 18 . . Melee . | . . . . Knockbacks . | . . . . Impact . | . . . . Kinetic . | . . . . Secondary . | . . . . Self-Inflicted Damage 6 | . 6 . . Shots . | . . . . Rammed 2 | . 2 . . Targets Rammed 2 | . 2 . . Kicked . | . . . . Crushed . | . . . . Highest Temperature 401 | 80 401 12 . Average Temperature 138 | 30 166 7 . Received Heat Transfer 288 | . 231 57 . Effects 5 | . 5 . . Shutdowns 1 | . 1 . . Energy Bleed 1 | . 1 . . Short Circuit 2 | . 2 . . Damage (minor) 1 | . 1 . . Siege Activations . | . . . . Robots Corrupted . | . . . . Combat Hostiles . | . . . . Parts Fried . | . . . . Impact Corruptions . | . . . . Robots Melted 2 | . 2 . . Combat Hostiles 2 | . 2 . . Parts Melted 5 | . 5 . . Heat Transferred 1937 | 161 1776 . . Parts Sabotaged . | . . . . Parts Stolen . | . . . . Parts Stripped . | . . . . Power Chain Reactions . | . . . . Alert | -11 -10 -10 -9 ------- Run | Yrd Mat Min Mat Peak Influence 308 | 10 308 61 . Initial 14 | . 6 14 . Average 73 | 6 115 18 . Maximum Alert Level 1 | . 1 . . Low Security (%) 91 | 100 84 100 100 Level 1 8 | . 15 . . Level 2 . | . . . . Level 3 . | . . . . Level 4 . | . . . . Level 5 . | . . . . High Security . | . . . . Max Security . | . . . . Squads Dispatched 2 | . 2 . . Investigation 1 | . 1 . . Extermination . | . . . . Reinforcement 1 | . 1 . . Assault . | . . . . Garrison . | . . . . Intercept . | . . . . Searches Triggered . | . . . . Construction Impeded . | . . . . Haulers Reinforced . | . . . . Active Scanning Responses . | . . . . Cargo Convoy Interrupts . | . . . . Stealth | -11 -10 -10 -9 --------- Run | Yrd Mat Min Mat Distress Signals 1 | . 1 . . Communications Jammed . | . . . . Distress Signals . | . . . . Times Spotted 25 | . 23 2 . Peak Tracking Total 4 | . 4 2 . Tactical Retreats . | . . . . Traps | -11 -10 -10 -9 ------- Run | Yrd Mat Min Mat Traps Triggered 1 | . 1 . . Indirectly . | . . . . Trap Hack Attempts . | . . . . Triggered . | . . . . Disarmed . | . . . . Reprogrammed . | . . . . Reused . | . . . . Traps Extracted . | . . . . Installed . | . . . . Triggered . | . . . . Machines | -11 -10 -10 -9 ---------- Run | Yrd Mat Min Mat Machines Disabled . | . . . . Max in Single Turn . | . . . . Machines Repaired . | . . . . Machines Dismantled . | . . . . Machines Sabotaged . | . . . . Overloaded Fab Kills . | . . . . Hacking | -11 -10 -10 -9 --------- Run | Yrd Mat Min Mat Machines Accessed 10 | . 9 1 . Terminals 8 | . 7 1 . Fabricators . | . . . . Repair Stations . | . . . . Recycling Units 2 | . 2 . . Scanalyzers . | . . . . Garrison Access . | . . . . Total Hacks 28 | . 23 5 . Successful 11 | . 8 3 . Failed 17 | . 15 2 . Catastrophic 1 | . 1 . . Database Lockouts . | . . . . Manual 7 | . 5 2 . Terminals 25 | . 20 5 . Fabricators . | . . . . Repair Stations . | . . . . Recycling Units 3 | . 3 . . Scanalyzers . | . . . . Garrison Access . | . . . . Terminal Hacks 8 | . 5 3 . Robot Analysis 1 | . 1 . . Prototype ID Bank 1 | . 1 . . Branch Access Points 1 | . . 1 . Emergency Access Points 1 | . 1 . . Dispatch Records 1 | . . 1 . Patrol Status 1 | . 1 . . Transport Status 1 | . 1 . . Zone Layout 1 | . . 1 . Fabricator Hacks . | . . . . Repair Station Hacks . | . . . . Recycling Unit Hacks 2 | . 2 . . Report Inventory 2 | . 2 . . Scanalyzer . | . . . . Garrison Access Hacks . | . . . . Unauthorized Hacks 1 | . 1 . . Terminals 1 | . 1 . . Botnet 1 | . 1 . . Fabricators . | . . . . Repair Stations . | . . . . Recycling Units . | . . . . Scanalyzers . | . . . . Garrison Access . | . . . . Data Cores Recovered . | . . . . Used . | . . . . Hacking Detections 8 | . 8 . . Full Trace Events . | . . . . Feedback Events . | . . . . Feedback Blocked . | . . . . Robot Schematics Acquired . | . . . . Robots Built . | . . . . Authchips . | . . . . Time . | . . . . Total Robot Build Rating . | . . . . Part Schematics Acquired . | . . . . Parts Built . | . . . . Authchips . | . . . . Time . | . . . . Total Part Build Rating . | . . . . Parts Repaired . | . . . . Time . | . . . . Parts Recycled . | . . . . Recycled Matter . | . . . . Retrieved Matter . | . . . . Retrieved Components . | . . . . Parts Scanalyzed . | . . . . Part Schematics Acquired . | . . . . Parts Damaged . | . . . . Bothacking | -11 -10 -10 -9 ------------ Run | Yrd Mat Min Mat Used RIF Installer . | . . . . Robots Hacked . | . . . . Non-combat . | . . . . Combat . | . . . . Robot Hacks Applied . | . . . . Relay Couplers Released . | . . . . Fabnet Peak Effective % . | . . . . Robots Rewired . | . . . . Allies Hacked . | . . . . Hacks Repelled . | . . . . Allies | -11 -10 -10 -9 -------- Run | Yrd Mat Min Mat Total Allies . | . . . . Largest Group . | . . . . Highest-Rated Group . | . . . . Highest-Rated Ally . | . . . . Total Orders . | . . . . Ally Attacks . | . . . . Total Damage . | . . . . Kills . | . . . . Allies Corrupted . | . . . . Allies Melted . | . . . . Intel | -11 -10 -10 -9 ------- Run | Yrd Mat Min Mat Robot Analysis Total 1 | . 1 . . Derelict Logs Recovered . | . . . . Drone Launches . | . . . . Drone Recoveries . | . . . . Exploration | -11 -10 -10 -9 ------------- Run | Yrd Mat Min Mat Turns Passed 2048 | 62 1163 820 3 Spaces Moved 1193 | 28 633 531 1 Core . | . . . . Treads 616 | 28 274 313 1 Legs . | . . . . Wheels 577 | . 359 218 . Hover . | . . . . Flight . | . . . . Fastest Speed 95 | 160 95 110 160 Average Speed 154 | 160 159 148 160 Slowest Speed 240 | 160 240 240 160 Overloaded Moves . | . . . . Propulsion Burnouts . | . . . . Robots Hopped . | . . . . Cave-ins Triggered . | . . . . Exploration Rate (%) 49 | 3 97 97 1 Regions Visited 3 Branch Regions 1 Pre-discovered Areas . | . . . . Known Exits Taken . | . . . . Unknown Exits Taken 3 | 1 1 1 . Scrap Searched 1 | . . 1 . Spaces Dug 2 | . . 2 . Terrain Destroyed 45 | . 19 26 . Melee . | . . . . Projectile 2 | . . 2 . AOE 43 | . 19 24 . Terrain Rammed . | . . . . Walls Destroyed . | . . . . Machines Disabled . | . . . . Actions | -11 -10 -10 -9 --------- Run | Yrd Mat Min Mat Total 1308 | 38 722 546 2 Wait 26 | . 25 1 . Move 1190 | 27 632 530 1 Hop . | . . . . Pick Up 6 | . 6 . . Fast Attach 6 | 1 3 2 . Attach 2 | . 1 . 1 Detach 5 | . 3 2 . Swap 12 | 2 8 2 . Drop 14 | 4 9 1 . Fire 45 | 4 33 8 . Melee . | . . . . Ram 1 | . 1 . . Kick . | . . . . Crush 1 | . 1 . . Escape Stasis . | . . . . Rewire . | . . . . Trap . | . . . . Miscellaneous . | . . . . Route ------- -11/Scrapyard -10/Materials (discovered 5 exits: [*Mat x3] / *Min x2) -10/Mines (discovered 2 exits: [*Mat x2]) -9/Materials History --------- Turn | Location | Event 12 | -11/Scrapyard | Discovered new exit (range 3) 63 | -11/Scrapyard | Entered Materials 267 | -10/Materials | Discovered new exit (range 10) 301 | -10/Materials | Discovered new exit (range 16) 305 | -10/Materials | Build established: Mutant 530 | -10/Materials | Discovered new exit (range 13) 599 | -10/Materials | Discovered new exit (range 13) 897 | -10/Materials | Discovered new exit (range 15) 1226 | -10/Materials | Entered Mines 1543 | -10/Mines | Discovered new exit (range 10) 1626 | -10/Mines | Core integrity fell below 50% 1685 | -10/Mines | Found a hidden stash of uninstalled traps 1762 | -10/Mines | Discovered new exit (range 15) 2046 | -10/Mines | Entered Materials 2046 | -9/Materials | Evolved 2 slots: Propulsion x1, Utility x1 2049 | -9/Materials | Self-destructed Last Messages --------------- 01636_ Found 33 Matter. 01639_ Acquired Lgt. Treads. 01640_ Acquired 10 matter. 01685_ A stash of uninstalled traps is collected here! 01762_ EXIT=FOUND 01949_ Connecting with Terminal... 01949_ Current location identified: Mines >>Enumerate(Squads) Retrieving dispatch records... No active records found. >>Layout(Zone) Retrieving Zone 3G layout... Downloaded map data. >>Access(Branch) No branch access points found. PARAMETERS=PROPULSION+1,UTILITY+1 LOCATION=UNKNOWN GOAL=ESCAPE 02047_ T-07 Excavator is excavating. Map ----- +----------------------------------------------------+ | | | | | | | | | | | ??????????????????????????????????????? | | ??????????????????????????????????????? | | ??????????????????????????????????????? | | ??????????????????????????????????????? | | ??????????????????????????????????????? | | ??????????????????????????????????????? | | ??????????????????????????????????????? | | ??????????????????????????????????????? | | ??????????????????????????????????????? | | ??????????????????????????????????????? | | ??????????????????????????????????????? | | ??????????????????????????????????????? | | ??????????????????????????????????????? | | ??????????????????????????????????????? | | ??????????????????????????????????????? | | ??????????????????????????????????????? | | ?????????????????????#######??????????? | | ?????????????????????#######??????????? | | ?????????????????????## ##??????????? | | ?????????????????????## # ??????????? | | ?????????????????????## @# ??????????? | | ?????????????????????## + ??????????? | | ?????????????????????## # ??????????? | | ?????????????????????## # ??????????? | | ?????????????????????## # ??????????? | | ?????????????????????## ##??????????? | | ?????????????????????## ##??????????? | | ?????????????????????## ##??????????? | | ?????????????????????## ##??????????? | | ?????????????????????## # ??????????? | | ?????????????????????## #??????????? | | ?????????????????????## ##??????????? | | ?????????????????????## ##??????????? | | ?????????????????????## ????????????? | | ?????????????????????## ????????????? | | ?????????????????????## ????????????? | | ??????????????????????????????????????? | | ??????????????????????????????????????? | | ??????????????????????????????????????? | | ??????????????????????????????????????? | | ??????????????????????????????????????? | | ??????????????????????????????????????? | | ??????????????????????????????????????? | | ??????????????????????????????????????? | | ??????????????????????????????????????? | +----------------------------------------------------+ Best States ------------- Heat Dissipation 25 Energy Generation 10 Energy Capacity 125 Matter Stores 300 Matter Capacity 300 Sight Range 16 Terrain Scan Range 16 Terrain Scan Density 10 Evasion (%) 41 Recoil Reduction 2 Item Schematics ----------------- None Robot Schematics ------------------ None Fabricated ------------ Nothing Alien Tech Used ----------------- None Achievements -------------- None Challenges ------------ None Game ------ Seed NuclearRiotBroadsword Manual? 0 Play Time 00:15:32 Cumulative 4.4 hours Start 2024.04.02 @ 19:56:31 End 2024.04.02 @ 20:17:36 Sessions 1 Manual Loads 0 Difficulty Rogue Special Mode None Game No. 10 Rogue 10 Adventurer 0 Explorer 0 Win Type - Total 0 Types 0/0/0/0/0/0/0/0/0 Lore% 14 Gallery% 9 Achievement% 22 Wizard Run 0 Options --------- Layout 1 ASCII 0 Keyboard 0 Movement Numpad Keybinds 0 Fullscreen 2 Font 32/Cog Map View 50x35 Zoom Use 0% Tactical HUD 1 Map Filters NONE Filters NONE Steam 1 RUN: 06549995-4b8e-4d35-9451-d5e515a9bac0